Workbook

Sheet 保険料試算シート
A1: 令和７年度 千代田区国民健康保険料の試算シート | N1: 料率等※変更があったら、こちらの数字を修正してください。 | T1: 均等割額減額後早見表
O2: 医療分 | P2: 支援金分 | Q2: 医・支合計 | R2: 介護分 | U2: 医療分 | V2: 支援金分 | W2: 医・支合計 | X2: 介護分
N3: 料率 | O3: 0.0771 | P3: 0.0269 | Q3: =O3+P3 -> 0.104 | R3: 0.0172 | T3: 7割減額 | U3: =O4*0.3 -> 14190 | V3: =P4*0.3 -> 5040 | W3: =U3+V3 -> 19230 | X3: =R4*0.3 -> 4860
A4: ・令和６年（2024年）分の源泉徴収票または確定申告書を用意してください。 ・このシートでは2024年１月～12月の所得をもとに2025年４月～翌年３月の保険料を試算することができます。 ・緑色のセルに入力すると、黄色のセルに試算結果が出ます。 ・保険料は「所得割（所得に応じた金額）＋均等割（国保加入者数に応じた金額）」で構成されています。 | N4: 均等割額 | O4: 47300 | P4: 16800 | Q4: =O4+P4 -> 64100 | R4: 16200 | T4: 5割減額 | U4: =O4*0.5 -> 23650 | V4: =P4*0.5 -> 8400 | W4: =U4+V4 -> 32050 | X4: =R4*0.5 -> 8100
N5: 最高限度額 | O5: 660000 | P5: 260000 | Q5: =O5+P5 -> 920000 | R5: 170000 | T5: ２割減額 | U5: =O4*0.8 -> 37840 | V5: =P4*0.8 -> 13440 | W5: =U5+V5 -> 51280 | X5: =R4*0.8 -> 12960
N6: 基礎控除 | O6: -430000 | Q6: 合計所得金額2400万円以下 | T6: 子どもの均等割軽減後早見表
O7: -190000 | Q7: 合計所得金額2400万円超2450万円以下 | U7: 医療分 | V7: 支援金分 | W7: 医・支合計
A8: STEP １ 世帯主と国保加入者の年齢区分・所得等の情報を入力してください | O8: -150000 | Q8: 合計所得金額2450万円超2500万円以下 | T8: 軽減なし | U8: =O4/2 -> 23650 | V8: =P4/2 -> 8400 | W8: =U8+V8 -> 32050
B9: 加入者 | C9: 国保加入 ・ 擬主*1 | D9: 年齢区分 | E9: 給与所得*2 | F9: 公的年金等所得*3 | G9: 営業・その他所得*4 | H9: 会社都合の失業*5 | I9: 総所得金額等 | J9: 保険料の算定対象額 （総所得金額等 － 基礎控除） ※会社都合の失業反映後 | O9: 0 | Q9: 合計所得金額2500万円超 | T9: 7割減額 | U9: =U3/2 -> 7095 | V9: 2520 | W9: =U9+V9 -> 9615
T10: 5割減額 | U10: 11825 | V10: 4200 | W10: =U10+V10 -> 16025
B11: A （世帯主） | I11: =IF(SUM(E11:G11)<0,0,SUM(E11:G11)) -> 0 | J11: =T15 -> 0 | T11: ２割減額 | U11: 18920 | V11: 6720 | W11: =U11+V11 -> 25640
B12: B | I12: =IF(SUM(E12:G12)<0,0,SUM(E12:G12)) -> 0 | J12: =T16 -> 0 | N12: 所得割額算定基礎額計算 | Y12: ※黄色の塗りつぶしセルのみ数式が他と異なる
B13: C | I13: 0 | J13: 0 | O13: (a) | P13: (b) | Q13: (c) | R13: (d) | S13: (e) | T13: (f)=(a)*(b)*{(c)+(d)+(e)} | V13: (g) | W13: (h)=(a)*(g)*{(c)+(d)+(e)}
B14: D | I14: 0 | J14: 0 | O14: 加入入力確認 | P14: 年齢入力確認 | Q14: 総所得金額等 | R14: 会社都合の失業控除 | S14: 基礎控除 | T14: 算定基礎額 | V14: 介護年齢確認 | W14: 介護算定基礎額
B15: E | I15: 0 | J15: 0 | N15: Ａ | O15: =IF(C11="加入",1,0) -> 0 | P15: =IF(OR(D11="",D11="75才以上"),0,1) -> 0 | Q15: =I11 -> 0 | R15: =IF(H11="〇",-E11*0.7,0)*IF(OR(D11="65～74才",D11="75才以上"),0,1) -> 0 | S15: =IF(I11<=24000000,$O$6)+IF(AND(I11>24000000,I11<=24500000),$O$7)+IF(AND(I11>24500000,I11<=25000000),$O$8)+IF(I11>25000000,$O$9) -> -430000 | T15: =IF(O15*P15*(Q15+R15+S15)<0,0,O15*P15*(Q15+R15+S15)) -> 0 | V15: =IF(D11="40～64才",1,0) -> 0 | W15: =IF(O15*V15*(Q15+R15+S15)<0,0,O15*V15*(Q15+R15+S15)) -> 0
B16: F | I16: 0 | J16: 0 | N16: Ｂ | O16: 0 | P16: =IF(D12="",0,1) -> 0 | Q16: =I12 -> 0 | R16: =IF(H12="〇",-E12*0.7,0)*IF(D12="65～74才",0,1) -> 0 | S16: =IF(I12<=24000000,$O$6)+IF(AND(I12>24000000,I12<=24500000),$O$7)+IF(AND(I12>24500000,I12<=25000000),$O$8)+IF(I12>25000000,$O$9) -> -430000 | T16: =IF(O16*P16*(Q16+R16+S16)<0,0,O16*P16*(Q16+R16+S16)) -> 0 | V16: 0 | W16: =IF(O16*V16*(Q16+R16+S16)<0,0,O16*V16*(Q16+R16+S16)) -> 0
C17: 合計 | J17: =SUM(J11:J16) -> 0 | N17: Ｃ | O17: 0 | P17: =IF(D13="",0,1) -> 0 | Q17: 0 | R17: =IF(H13="〇",-E13*0.7,0)*IF(D13="65～74才",0,1) -> 0 | S17: -430000 | T17: 0 | V17: 0 | W17: 0
A18: 【注意事項】 | N18: Ｄ | O18: 0 | P18: =IF(D14="",0,1) -> 0 | Q18: 0 | R18: =IF(H14="〇",-E14*0.7,0)*IF(D14="65～74才",0,1) -> 0 | S18: -430000 | T18: 0 | V18: 0 | W18: 0
B19: *1 擬主とは国保に加入していない世帯主をいいます。保険料の均等割額減額世帯に該当するかを判定するため、入力が必要になります。 | N19: Ｅ | O19: 0 | P19: =IF(D15="",0,1) -> 0 | Q19: 0 | R19: =IF(H15="〇",-E15*0.7,0)*IF(D15="65～74才",0,1) -> 0 | S19: -430000 | T19: 0 | V19: 0 | W19: 0
B20: *2 源泉徴収票の『給与所得控除後の金額』を入力してください。 | N20: Ｆ | O20: 0 | P20: =IF(D16="",0,1) -> 0 | Q20: 0 | R20: =IF(H16="〇",-E16*0.7,0)*IF(D16="65～74才",0,1) -> 0 | S20: -430000 | T20: 0 | V20: 0 | W20: 0
B21: *3 公的年金等所得はリンクを参考に算出してください。詳細は税務署等へお尋ねください。 | N21: 合計 | T21: =SUM(T15:T20) -> 0 | W21: =SUM(W15:W20) -> 0
B22: *4 確定申告書の給与所得及び年金等所得以外の所得の合計金額を入力してください。
B23: （例：事業所得、不動産所得、雑所得（年金除く）、土地建物の長・短期譲渡所得、株式配当所得、株式譲渡所得など） | N23: 均等割額減額判定用所得計算
B24: ※株式等の取引の際、源泉徴収ありの特定口座を選択し、確定申告をしなかった場合の株式等の所得は算定対象に含みません。 | O24: (i) | P24: (j) | Q24: (c) | R24: (k) | S24: (l) | T24: (m)=(i)*(j)*{(c)+(k)+(l)} | V24: (n) | W24: (o)=(a)*(b)-(p) | X24: (p) | Y24: (q)=(o)+(p) | Z24: (r)=(a)*(g) | AA24: ※黄色の塗りつぶしセルのみ数式が他と異なる
B25: ※なお、分離課税（特に損益通算の対象となる所得）がある場合については、この試算シートでは正確な保険料をご案内できない場合があります。 | O25: 加入等入力確認 | P25: 年齢入力確認 | Q25: 総所得金額等 | R25: 会社都合の失業控除 | S25: 65才以上公的年金等控除 | T25: 均等割額減額判定用所得 | V25: 給与所得者等の数 | W25: 均等割額対象者数 （子ども除く） | X25: 子ども均等割対象者数 | Y25: 均等割額対象者合計 | Z25: 介護対象者数
B26: *5 64歳以下の方が会社都合で失業した場合、その方の給与所得を30/100にして保険料を算出します。該当する場合は○を選択 して | N26: A | O26: =IF(C11="",0,1) -> 0 | P26: =IF(D11="",0,1) -> 0 | Q26: =I11 -> 0 | R26: =IF(H11="〇",-E11*0.7,0)*IF(OR(D11="65～74才",D11="75才以上"),0,1)*IF(C11="擬主",0,1) -> 0 | S26: =IF(F11<150000,-F11,-150000)*IF(OR(D11="65～74才",D11="75才以上"),1,0) -> 0 | T26: =IF(O26*P26*(Q26+R26+S26)<0,0,O26*P26*(Q26+R26+S26)) -> 0 | V26: =IF(OR(E11>0,IF(OR(D11="65才～74才",D11="75才以上"),F11-150000,F11)>0),1,0)*IF(C11="",0,1) -> 0 | W26: =(O15*P15)-X26 -> 0 | X26: =IF(D11="0～6才",1,0) -> 0 | Y26: =W26+X26 -> 0 | Z26: =O15*V15 -> 0
B27: ください。なお、この制度の適用には申請が必要です。（雇用保険受給資格者証※を当区国民健康保険係まで提示してください） | N27: B | O27: =IF(C12="加入",1,0) -> 0 | P27: =IF(D12="",0,1) -> 0 | Q27: 0 | R27: =IF(H12="〇",-E12*0.7,0)*IF(OR(D12="65～74才",D12="75才以上"),0,1) -> 0 | S27: =IF(F11<150000,-F11,-150000)*IF(D11="65～74才",1,0) -> 0 | T27: =IF(O27*P27*(Q27+R27+S27)<0,0,O27*P27*(Q27+R27+S27)) -> 0 | V27: =IF(OR(E12>0,IF(D12="65才～74才",F12-150000,F12)>0),1,0)*IF(C12="",0,1) -> 0 | W27: =O16*P16-X27 -> 0 | X27: 0 | Y27: =W27+X27 -> 0 | Z27: =IF(AND(C12="加入",D12="40～64才"),1,0) -> 0
B28: ※雇用保険受給資格者証、離職理由等については発行元のハローワークへお尋ねください。 | N28: C | O28: =IF(C13="加入",1,0) -> 0 | P28: =IF(D13="",0,1) -> 0 | Q28: 0 | R28: =IF(H13="〇",-E13*0.7,0)*IF(OR(D13="65～74才",D13="75才以上"),0,1) -> 0 | S28: =IF(F12<150000,-F12,-150000)*IF(D12="65～74才",1,0) -> 0 | T28: 0 | V28: =IF(OR(E13>0,IF(D13="65才～74才",F13-150000,F13)>0),1,0)*IF(C13="",0,1) -> 0 | W28: =O17*P17-X28 -> 0 | X28: 0 | Y28: 0 | Z28: =IF(AND(C13="加入",D13="40～64才"),1,0) -> 0
B29: （該当離職理由コード：11,12,21,22,23,31,32,33,34） | N29: D | O29: =IF(C14="加入",1,0) -> 0 | P29: =IF(D14="",0,1) -> 0 | Q29: 0 | R29: =IF(H14="〇",-E14*0.7,0)*IF(OR(D14="65～74才",D14="75才以上"),0,1) -> 0 | S29: =IF(F13<150000,-F13,-150000)*IF(D13="65～74才",1,0) -> 0 | T29: 0 | V29: =IF(OR(E14>0,IF(D14="65才～74才",F14-150000,F14)>0),1,0)*IF(C14="",0,1) -> 0 | W29: =O18*P18-X29 -> 0 | X29: 0 | Y29: 0 | Z29: =IF(AND(C14="加入",D14="40～64才"),1,0) -> 0
B30: ※会社都合による失業の場合でも、傷病手当金の受給など失業保険を受給することが出来ない場合には軽減対象とならない場合があります。 | N30: E | O30: =IF(C15="加入",1,0) -> 0 | P30: =IF(D15="",0,1) -> 0 | Q30: 0 | R30: =IF(H15="〇",-E15*0.7,0)*IF(OR(D15="65～74才",D15="75才以上"),0,1) -> 0 | S30: =IF(F14<150000,-F14,-150000)*IF(D14="65～74才",1,0) -> 0 | T30: 0 | V30: =IF(OR(E15>0,IF(D15="65才～74才",F15-150000,F15)>0),1,0)*IF(C15="",0,1) -> 0 | W30: =O19*P19-X30 -> 0 | X30: 0 | Y30: 0 | Z30: =IF(AND(C15="加入",D15="40～64才"),1,0) -> 0
N31: F | O31: =IF(C16="加入",1,0) -> 0 | P31: =IF(D16="",0,1) -> 0 | Q31: 0 | R31: =IF(H16="〇",-E16*0.7,0)*IF(OR(D16="65～74才",D16="75才以上"),0,1) -> 0 | S31: =IF(F15<150000,-F15,-150000)*IF(D15="65～74才",1,0) -> 0 | T31: 0 | V31: =IF(OR(E16>0,IF(D16="65才～74才",F16-150000,F16)>0),1,0)*IF(C16="",0,1) -> 0 | W31: =O20*P20-X31 -> 0 | X31: 0 | Y31: 0 | Z31: =IF(AND(C16="加入",D16="40～64才"),1,0) -> 0
A32: STEP ２ 保険料の計算結果が出ました | N32: 合計 | T32: =SUM(T26:T31) -> 0 | V32: =SUM(V26:V31) -> 0 | W32: =SUM(W26:W31) -> 0 | X32: =SUM(X26:X31) -> 0 | Y32: 0 | Z32: =SUM(Z26:Z31) -> 0
E33: 医療分 料率：7.71% | G33: 支援金分 料率：2.69% | I33: 介護分（40～64才対象） 料率：1.72%
B34: 所得割 （算定基礎額×料率） | E34: =T21*O3*IF(OR(C11="",D11=""),0,1) -> 0 | G34: =T21*P3*IF(OR(C11="",D11=""),0,1) -> 0 | I34: =W21*R3*IF(OR(C11="",D11=""),0,1) -> 0
B35: 均等割 | E35: =IF(V38="○",U3,IF(W38="○",U4,IF(X38="○",U5,O4)))*W32*IF(OR(C11="",D11=""),0,1)+IF(V38="○",U9,IF(W38="○",U10,IF(X38="○",U11,U8)))*X32*IF(OR(C11="",D11=""),0,1) -> 0 | G35: =IF(V38="○",V3,IF(W38="○",V4,IF(X38="○",V5,P4)))*W32*IF(OR(C11="",D11=""),0,1)+IF(V38="○",V9,IF(W38="○",V10,IF(X38="○",V11,V8)))*X32*IF(OR(C11="",D11=""),0,1) -> 0 | I35: =IF(V38="○",X3,IF(W38="○",X4,IF(X38="○",X5,R4)))*Z32*IF(OR(C11="",D11=""),0,1) -> 0 | K35: =IF(COUNTIF(H11:H16,"〇")>0,"※給与所得30/100入力有","") ->  | N35: 均等割額減額世帯所得基準 ※変更があったら、こちらの数字を修正してください。
B36: 小計 | E36: =IF((E34+E35)>O5,O5,E34+E35) -> 0 | G36: =IF((G34+G35)>P5,P5,G34+G35) -> 0 | I36: =IF((I34+I35)>R5,R5,I34+I35) -> 0 | K36: =IF(COUNTIFS(C11,"<>",D11,"<>")=1,IF(COUNTIFS(C11:C16,"加入",D11:D16,"0～6才")+COUNTIFS(C11:C16,"加入",D11:D16,"7～18才")+COUNTIFS(C11:C16,"加入",D11:D16,"19～39才")+COUNTIFS(C11:C16,"加入",D11:D16,"40～64才")+COUNTIFS(C11:C16,"加入",D11:D16,"65～74才")>0,IF(S39<=O37,"※7割減額",IF(S39<=(P37+(P38*Y32)),"※5割減額",IF(S39<=Q37+(Q38*Y32),"※2割減額",""))),""),"") ->  | O36: 7割減額 | P36: 5割減額 | Q36: ２割減額
B37: 最高限度額 | E37: 660000 | G37: 260000 | I37: 170000 | N37: 基礎控除分 | O37: 430000 | P37: 430000 | Q37: 430000 | S37: (s)=(m)合計-(q) | U37: ⇒ | V37: 7割減額 | W37: 5割減額 | X37: ２割減額
N38: ●万円×被保険者数 | O38: － | P38: 305000 | Q38: 560000 | S38: 調整後減額判定所得 | V38: =IF(S39<=O37,"○","✖") -> ○ | W38: =IF(AND(O37<S39,S39<=(P37+(P38*Y32))),"○","✖") -> ✖ | X38: =IF(AND(P37+(P38*Y32)<S39,S39<=Q37+(Q38*Y32)),"○","✖") -> ✖
B39: 年間保険料 | G39: =SUM(E36:J36) -> 0 | N39: その他(q) | O39: （給与所得者等の数－１）×10万円 | S39: =T32-O40 -> 0
B40: ※注意① 端数処理の都合で、実際の請求額とは異なる場合があります。 | O40: =IF(V32<2,0,(V32-1)*100000) -> 0
B41: ※注意② 40才や65才になる方は年度の途中で保険料が変わりますが、この試算シートでは反映されません。
B42: ※注意③ 世帯あたりの保険料が最高限度額に達する場合、小計欄=所得割+均等割にはなりません。 | N42: 月別保険料計算表
B43: ※注意④ 年度途中で加入する場合は、加入月に応じた年間保険料となります。 | N43: 加入該当月 | P43: 加入期間早見表
B44: ※注意⑤ 均等割額の減額判定にはこの試算シートでは反映していない控除等があるため実際と異なる場合があります。 | N44: =IF(G49="","",MONTH(G49)) ->  | P44: 4 | Q44: 5 | R44: 6 | S44: 7 | T44: 8 | U44: 9 | V44: 10 | W44: 11 | X44: 12 | Y44: 1 | Z44: 2 | AA44: 3
B45: ※注意⑥ 本表の結果はあくまで試算です。実際の保険料とは異なる場合があります。 | N45: 加入月数 | P45: 12 | Q45: 11 | R45: 10 | S45: 9 | T45: 8 | U45: 7 | V45: 6 | W45: 5 | X45: 4 | Y45: 3 | Z45: 2 | AA45: 1
N46: =IF(N44="",12,HLOOKUP(N44,P44:AA45,2,0)) -> 12
A47: STEP 3 月額保険料は以下のとおりです | P47: 算定期間デフォ
P48: 始期 | Q48: 2025 | R48: 4
B49: 国保加入日 | P49: 終期 | Q49: =Q48+1 -> 2026 | R49: 3
B51: 国保加入日が確認したい年度（4月1日）より前の場合には空欄となります | N51: 【職員用説明】 均等割額減額判定用所得 ・非自発的軽減が「〇」の方は適用後の所得で判定しています。（ただし世帯主が「擬主」の場合適用しません。） ・65才以上の公的年金等所得がある方は15万円の控除を適用しています。（ただし適用後の年金所得が0円未満の場合、0円としています。） ・（給与所得者の数－１）×10万円の控除を適用後の所得で判定しています。（ただし年金所得の判定は本来、「65歳未満」は年金収入60万円を超える者、「65才以上」は 年金収入が125万円を超える者が対象ですが、本シートでは65歳未満は年金所得が0円を超える者、65才以上は年金所得－15万円が0円を超える者を対象としています。） ※年金所得以外の所得が1,000万円を超える者は年金控除額が異なるため、誤って給与所得者等の数に含まれる場合があります。 年金所得以外に1,000万円以上所得がある場合均等割額の減額に該当しないと思われるので、影響はないと考えます。 ・専従者控除所得は必要経費として考慮しないで軽減判定しますが、本シートでは反映していません。 ・専従者給与所得は軽減判定所得に含めず計算しますが、本シートでは反映していません。 ・土地、建物に係る譲渡所得は特別控除前の所得で判定を行いますが、本シートでは反映していません。
B52: 算定期間 | D52: 始期 | E52: =IF(N44="",Q48&"年"&R48&"月",IF(OR((N44=1),(N44=2),(N44=3)),(Q49&"年"&N44&"月"),Q48&"年"&N44&"月")) -> 2025年4月 | G52: 終期 | H52: =Q49&"年"&R49&"月" -> 2026年3月
B55: 加入月数に応じた保険料 | G55: =IF(G49="","0円",ROUNDUP((G39*(N46/12)),0)) -> 0円
B58: 月額保険料 | G58: =IF(G49="",ROUNDUP(G39/12,0),IFERROR(ROUNDUP((G39*(N46/12)/N46),0),"0円")) -> 0
B60: ※注意① 国保加入日は「社会保険の資格喪失日」です。「社会保険の資格喪失日」は「退職日の翌日」となります。
B61: ※注意② 保険料は「日割」ではなく、「月割」での計算となります。
B62: ※注意③ 月額保険料は2025年４月～翌年３月の保険料を加入月数で割ったものです。翌年４月以降の保険料は
C63: 2025年１月～12月（2025年分）の所得をもとに計算されるため、上記保険料とは別になります。
B64: ※注意④ 既に国保に加入している方がいる世帯に年度途中で国保に加入する方がいる場合は、「加入月数に応じた保険料」
C65: を正しく計算することができません。
C66: Eｘ.夫はずっと国保だが、６月１日から妻が年度途中に加入する場合

Sheet 給与所得の源泉徴収票

Sheet 公的年金等の源泉徴収票
A3: 年齢区分 | B3: 公的年金等の収入金額の合計額 (a) | F3: 公的年金等に係る雑所得の金額の計算方法
F5: 公的年金等に係る雑所得以外の所得に係る合計所得金額
F6: 1,000万円以下 | I6: 1,000万円超2,000万円以下 | L6: 2,000万円超
A8: 65歳未満 | B8: 0～600,000 | F8: 所得金額は0円です。 | I8: 所得金額は0円です。 | L8: 所得金額は0円です。
B9: 600,001円から1,299,999円まで | F9: (a)×1－600,000円 | I9: (a)×1－500,000円 | L9: (a)×1－400,000円
B10: 1,300,000円から4,099,999円まで | F10: (a)×0.75－275,000円 | I10: (a)×0.75－175,000円 | L10: (a)×0.75－75,000円
B11: 4,100,000円から7,699,999円まで | F11: (a)×0.85－685,000円 | I11: (a)×0.85－585,000円 | L11: (a)×0.85－485,000円
B12: 7,700,000円から9,999,999円まで | F12: (a)×0.95－1,455,000円 | I12: (a)×0.95－1,355,000円 | L12: (a)×0.95－1,255,000円
B13: 10,000,000円以上 | F13: (a)×1－1,955,000円 | I13: (a)×1－1,855,000円 | L13: (a)×1－1,755,000円
A14: 65歳以上 | B14: 0～1,100,000 | F14: 所得金額は0円です。 | I14: 所得金額は0円です。 | L14: 所得金額は0円です。
B15: 1,100,001円から3,299,999円まで | F15: (a)×1－1,100,000円 | I15: (a)×1－1,000,000円 | L15: (a)×1－900,000円
B16: 3,300,000円から4,099,999円まで | F16: (a)×0.75－275,000円 | I16: (a)×0.75－175,000円 | L16: (a)×0.75－75,000円
B17: 4,100,000円から7,699,999円まで | F17: (a)×0.85－685,000円 | I17: (a)×0.85－585,000円 | L17: (a)×0.85－485,000円
B18: 7,700,000円から9,999,999円まで | F18: (a)×0.95－1,455,000円 | I18: (a)×0.95－1,355,000円 | L18: (a)×0.95－1,255,000円
B19: 10,000,000円以上 | F19: (a)×1－1,955,000円 | I19: (a)×1－1,855,000円 | L19: (a)×1－1,755,000円

Sheet 確定申告書
